[Event "85th ARM-ch HL 2025"]
[Site "Yerevan"]
[Date "2025.01.16"]
[Round "3.4"]
[White "Andriasian, Zaven"]
[Black "Hayrapetyan, Hovik"]
[Result "1/2-1/2"]
[Annotator "TA"]
[ECO "B90"]
[WhiteElo "2554"]
[BlackElo "2462"]
[PlyCount "61"]
[EventDate "2025.01.13"]
[EventType "tourn"]
[EventCountry "ARM"]
[SourceTitle "playchess.com"]
[Source "ChessBase"]
[SourceQuality "1"]
[TimeControl "40/5400+30:1800+30"]

{[%evp 12,61,13,1,20,18,16,7,14,-20,79,0,0,0,21,0,64,49,42,32,26,0,35,34,32,0,0,0,0,0,0,5,8,0,0,0,0,0,0,-19,0,0,0,0,0,-62,0,0,0,0,0,0]} 1. e4 {[%emt 0:00:02]} c5 {[%emt 0:01:03]} 2. Nf3 {[%emt 0:00:09]} d6 {[%emt 0:00:09]} 3. d4 {[%emt 0:00:09]} cxd4 {[%emt 0:00:05]} 4. Nxd4 {[%emt 0:00:11]} Nf6 {[%emt 0:00:06]} 5. Nc3 {[%emt 0:00:12]} a6 {[%emt 0:00:05]} 6. h3 {[%emt 0:00:11]} e5 {[%emt 0:00:07]} 7. Nb3 {[%emt 0:00:11]} Be7 {[%emt 0:00:13]} 8. g4 {[%emt 0:00:08]} h6 {[%emt 0:00:06]} 9. Be3 {[%emt 0:00:11]} Nbd7 {[%emt 0:00:57]} 10. Qd2 {[%emt 0:03:22]} Nf8 {[%emt 0:06:12]} (10... b5 $11) 11. f4 {[%emt 0:06:35] White is more active.} (11. O-O-O $16) 11... exf4 $11 {[%emt 0:02:53]} 12. Bxf4 {[%emt 0:00:11]} Ng6 {[%emt 0:00:04]} 13. Be3 {[%emt 0:00:32]} Be6 {[%emt 0:02:41]} (13... O-O $11) 14. O-O-O $14 {[%emt 0:03:35]} Rc8 {[%emt 0:04:10]} 15. Kb1 {[%emt 0:07:38]} Ne5 {[%emt 0:06:13]} 16. Nd5 {[%emt 0:05:58]} (16. Nd4 {is interesting.} Qa5 17. Bd3 b5 18. a3) 16... Nxd5 {[%emt 0:09:19]} 17. exd5 {[%emt 0:00:17]} Bd7 {[%emt 0:00:03]} 18. Be2 {[%emt 0:09:44]} O-O {[%emt 0:07:25]} 19. Nd4 {[%emt 0:02:46]} Re8 {[%emt 0:06:34]} 20. Rhg1 {[%emt 0:05:54]} Nc4 {[%emt 0:08:14]} 21. Bxc4 {[%emt 0:13:14]} Rxc4 {[%emt 0:00:55]} 22. b3 {[%emt 0:02:42]} Rc8 {[%emt 0:01:37]} 23. Nf5 {[%emt 0:05:37]} Bxf5 $1 {[%emt 0:06:33]} 24. gxf5 {[%emt 0:00:07]} Kh7 {[%emt 0:00:06]} 25. Bd4 {[%emt 0:00:58]} Bf6 {[%emt 0:00:44]} 26. Rg4 {[%emt 0:00:41] Against Re4} Bxd4 {[%emt 0:09:20]} 27. Qxd4 {[%emt 0:00:10][%csl Gg4][%cal Rd4g7] [#]} f6 {[%emt 0:00:02]} 28. Rdg1 {[%emt 0:06:23]} ({White should try} 28. Re4 $1 $11) 28... Re7 {[%emt 0:01:44]} ({Better is} 28... Rc7 $1 $15) 29. Re4 $1 $11 {[%emt 0:02:56] The position is equal.} Re5 {[%emt 0:05:26]} 30. Rxe5 {[%emt 0:03:35]} dxe5 {[%emt 0:00:04]} 31. Qe4 {[%emt 0:01:22] Weighted Error Value: White=0.17 (very precise) /Black=0.17 (very precise) .  Mistake:       	White=2     	Black=3      Inaccurate:     	White=4     	Black=1      OK:         	White=8     	Black=10     Best:        	---       	Black=2      Strong:       	White=1     	Black=1} 1/2-1/2

[Event "85th ARM-ch HL 2025"]
[Site "Yerevan"]
[Date "2025.01.16"]
[Round "3.5"]
[White "Sargsyan, Sargis Vach."]
[Black "Hovhannisyan, Robert"]
[Result "1/2-1/2"]
[Annotator "TA"]
[ECO "C77"]
[WhiteElo "2370"]
[BlackElo "2626"]
[PlyCount "190"]
[EventDate "2025.01.13"]
[EventType "tourn"]
[EventCountry "ARM"]
[SourceTitle "playchess.com"]
[Source "ChessBase"]
[SourceQuality "1"]
[TimeControl "40/5400+30:1800+30"]

{[%evp 36,190,22,14,23,22,16,0,0,0,0,0,3,0,0,0,0,0,28,0,0,0,0,0,0,0,30,37,26,24,34,37,34,44,25,43,42,16,71,70,67,0,54,56,69,45,82,70,115,124,126,123,122,86,78,0,129,104,118,118,121,121,103,118,124,118,117,111,118,118,107,46,46,35,47,35,35,35,35,35,35,35,75,55,56,56,75,75,75,75,75,75,75,67,75,67,67,67,67,67,67,67,67,67,67,64,64,64,68,64,64,64,64,50,57,57,68,68,68,51,93,93,93,93,93,93,93,93,93,93,93,0,166,166,166,166,166,166,166,166,166,166,166,166,166,166,166,0,166,0,166,98,98,66,98,66,66]} 1. e4 {[%emt 0:00:08]} e5 {[%emt 0:00:13]} 2. Nf3 {[%emt 0:00:10]} Nc6 {[%emt 0:00:10]} 3. Bb5 {[%emt 0:00:27]} a6 {[%emt 0:00:24]} 4. Ba4 {[%emt 0:00:07]} Nf6 {[%emt 0:00:13]} 5. O-O {[%emt 0:00:10]} Be7 {[%emt 0:00:30]} 6. d3 {[%emt 0:00:21]} b5 {[%emt 0:00:47]} 7. Bb3 {[%emt 0:00:56]} d6 {[%emt 0:00:39]} 8. a3 {[%emt 0:01:05]} O-O {[%emt 0:01:25]} 9. Nc3 {[%emt 0:00:07]} Rb8 {[%emt 0:01:34]} 10. h3 {[%emt 0:01:18]} Na5 {[%emt 0:03:07]} 11. Ba2 {[%emt 0:00:25]} c5 {[%emt 0:01:15]} 12. Bg5 {[%emt 0:07:05]} c4 {[%emt 0:06:41]} 13. b4 {[%emt 0:05:17]} cxb3 {[%emt 0:00:58]} 14. cxb3 {[%emt 0:00:04]} b4 {[%emt 0:01:39]} 15. axb4 {[%emt 0:00:07]} Nc6 {[%emt 0:00:35]} 16. Rc1 {[%emt 0:12:40]} Nxb4 {[%emt 0:08:05]} 17. Bb1 {[%emt 0:00:16]} Nfd5 {[%emt 0:25:47]} 18. Nxd5 {[%emt 0:02:20]} Nxd5 {[%emt 0:00:06]} 19. Bd2 {[%emt 0:02:19]} Nb4 {[%emt 0:05:13]} 20. d4 {[%emt 0:00:52]} Bf6 {[%emt 0:00:13]} 21. Rc4 {[%emt 0:14:46]} a5 {[%emt 0:00:47]} 22. Bxb4 {[%emt 0:00:27]} axb4 {[%emt 0:03:17]} 23. Bd3 {[%emt 0:03:58]} Qb6 {[%emt 0:02:09]} 24. d5 {[%emt 0:03:08]} Bd7 {[%emt 0:00:57]} 25. Qd2 {[%emt 0:00:51]} Rfc8 {[%emt 0:11:18]} 26. Ra1 {[%emt 0:00:52]} g6 {[%emt 0:02:40]} 27. Ne1 {[%emt 0:03:02]} Kg7 {[%emt 0:03:44]} 28. Rxc8 {[%emt 0:05:42]} Bxc8 {[%emt 0:00:32]} 29. Bc4 {[%emt 0:00:34]} Bd8 {[%emt 0:01:57]} 30. Ra4 {[%emt 0:01:05]} Qc5 {[%emt 0:01:57]} 31. Nd3 {[%emt 0:01:33]} Qd4 {[%emt 0:00:07]} 32. Qe3 {[%emt 0:00:07]} (32. Rxb4 $2 Ba5 33. Rxb8 Bxd2 $19) 32... Qxe3 {[%emt 0:04:57]} 33. fxe3 {[%emt 0:00:17]} Bd7 {[%emt 0:03:22]} 34. Ra6 {[%emt 0:02:50]} Bb6 {[%emt 0:02:22]} 35. Kf2 {[%emt 0:00:07]} f5 {[%emt 0:03:48]} 36. Ke2 {[%emt 0:00:54]} Bc8 {[%emt 0:02:17]} (36... fxe4 $11 37. Nxb4 Bc5) 37. Ra4 $16 {[%emt 0:00:50]} Bd7 {[%emt 0:00:02]} 38. Ra6 {[%emt 0:11:21]} Bc8 {[%emt 0:00:06]} 39. Ra2 {[%emt 0:00:53]} fxe4 {[%emt 0:02:26]} 40. Nxb4 {[%emt 0:00:00]} Bb7 {[%emt 0:00:00]} 41. Ra4 {[%emt 0:01:40]} Ra8 {[%emt 0:09:06]} 42. Rxa8 {[%emt 0:03:44]} Bxa8 {[%emt 0:00:04]} 43. Na2 {[%emt 0:00:07]} Kf6 {[%emt 0:01:11]} 44. Nc3 {[%emt 0:00:43]} Ba5 {[%emt 0:00:46]} 45. Na2 {[%emt 0:02:48]} (45. Nxe4+ $16 Ke7 46. Ng5) 45... Bd8 {[%emt 0:04:51]} (45... Bb6 $1 $11 {keeps the balance.}) 46. b4 $1 $16 {[%emt 0:00:24]} Ke7 {[%emt 0:00:26]} 47. Nc3 {[%emt 0:00:35]} Kd7 {[%emt 0:00:23]} 48. Nxe4 {[%emt 0:00:39]} Bb7 {[%emt 0:00:39]} 49. g4 {[%emt 0:01:17]} Bh4 {[%emt 0:05:35]} 50. Bb5+ $1 {[%emt 0:03:00]} Kc7 {[%emt 0:00:36]} 51. Nc3 {[%emt 0:00:15]} Be7 {[%emt 0:03:53]} 52. Be8 $1 {[%emt 0:02:36]} Bc8 {[%emt 0:01:15]} 53. Bf7 {[%emt 0:00:54]} ({White should play} 53. Kf3 $16) 53... Bd7 $14 {[%emt 0:00:58]} 54. Kf3 {[%emt 0:05:28]} Bh4 $1 {[%emt 0:00:36]} 55. Bg8 {[%emt 0:01:30]} Be1 {[%emt 0:02:17]} 56. Ne4 {[%emt 0:04:15]} h6 {[%emt 0:00:15]} 57. Bf7 {[%emt 0:01:18]} g5 {[%emt 0:00:04]} 58. Nf6 {[%emt 0:00:33]} Bxb4 {[%emt 0:00:26]} 59. Be8 {[%emt 0:00:39]} Bc8 {[%emt 0:00:37]} 60. Bb5 {[%emt 0:01:46]} Kd8 {[%emt 0:03:35]} 61. Ng8 {[%emt 0:00:04]} Ba3 {[%emt 0:00:39]} 62. Ke4 {[%emt 0:01:16]} Bc5 {[%emt 0:00:15]} 63. Kd3 {[%emt 0:00:47]} Bb6 {[%emt 0:00:55]} 64. e4 {[%emt 0:00:51]} Bf2 {[%emt 0:00:24]} 65. Ke2 {[%emt 0:00:54]} Bc5 {[%emt 0:00:30]} 66. Kf3 {[%emt 0:00:37]} Bb4 {[%emt 0:00:27]} 67. Kf2 {[%emt 0:01:21]} Bc5+ {[%emt 0:00:12]} 68. Kg3 {[%emt 0:00:04]} Bb4 {[%emt 0:00:10]} 69. Kf3 {[%emt 0:01:22]} Be1 {[%emt 0:01:17]} 70. Ke2 {[%emt 0:00:11]} Bb4 {[%emt 0:00:19]} 71. Kd3 {[%emt 0:00:12]} Be1 {[%emt 0:00:19]} 72. Kc4 {[%emt 0:00:56]} Bd2 {[%emt 0:00:29]} 73. Kb3 {[%emt 0:00:33]} Be1 {[%emt 0:00:12]} 74. Bd3 {[%emt 0:00:38]} Ke8 {[%emt 0:02:04]} 75. Nxh6 {[%emt 0:00:08]} Kf8 {[%emt 0:00:21]} 76. Nf5 {[%emt 0:00:34]} Bxf5 {[%emt 0:00:06]} 77. exf5 {[%emt 0:00:03]} e4 {[%emt 0:02:19]} 78. Bxe4 {[%emt 0:00:05]} Ke7 {[%emt 0:00:02]} 79. Kc4 {[%emt 0:00:09]} Bg3 {[%emt 0:00:46]} 80. Kb5 {[%emt 0:00:07]} Be5 {[%emt 0:00:48]} 81. Kc6 {[%emt 0:00:38]} Bf6 {[%emt 0:00:44]} 82. Bf3 {[%emt 0:00:27]} Be5 {[%emt 0:00:19] [#]} 83. h4 {[%emt 0:00:21]} (83. Be2 $1 $16) 83... Bf6 $2 {[%emt 0:00:11]} (83... gxh4 $11 {and Black is okay.} 84. g5 h3) 84. h5 $18 {[%emt 0:00:44]} Be5 {[%emt 0:00:15]} 85. h6 {[%emt 0:00:29]} Bf6 {[%emt 0:00:07]} 86. h7 {[%emt 0:00:21]} Be5 {[%emt 0:00:10]} 87. Bd1 {[%emt 0:00:14]} Bf6 {[%emt 0:00:07]} 88. Bc2 {[%emt 0:00:07]} Be5 {[%emt 0:00:07]} 89. Kb5 {[%emt 0:00:03]} Bf6 {[%emt 0:00:16]} 90. Kc4 {[%emt 0:00:05]} Kf8 {[%emt 0:00:18]} 91. Kb5 {[%emt 0:00:09]} Ke7 $1 {[%emt 0:00:07]} 92. Kc6 {[%emt 0:00:05]} Be5 $1 {[%emt 0:00:08] [#]} 93. f6+ {[%emt 0:00:03]} (93. Kc7 $1 $18) 93... Bxf6 $16 {[%emt 0:00:05]} 94. Kb5 {[%emt 0:00:03]} Bg7 {[%emt 0:00:16]} 95. Kc4 {[%emt 0:00:15]} Bh8 {[%emt 0:00:06]} 1/2-1/2

[Event "85th ARM-ch HL 2025"]
[Site "Yerevan"]
[Date "2025.01.17"]
[Round "4.1"]
[White "Davtyan, Artur"]
[Black "Hovhannisyan, Robert"]
[Result "1/2-1/2"]
[Annotator "TA"]
[ECO "D41"]
[WhiteElo "2458"]
[BlackElo "2626"]
[PlyCount "78"]
[EventDate "2025.01.13"]
[EventType "tourn"]
[EventCountry "ARM"]
[SourceTitle "playchess.com"]
[Source "ChessBase"]
[SourceQuality "1"]
[TimeControl "40/5400+30:1800+30"]

{[%evp 13,78,16,49,29,16,26,27,20,42,14,8,10,17,12,14,0,12,4,6,9,6,5,9,6,18,18,14,10,20,6,14,14,23,13,24,9,14,2,15,3,3,3,18,22,10,12,13,22,18,0,0,0,0,0,0,0,0,0,0,0,0,0,0,0,0,0,45]} 1. d4 {[%emt 0:03:32]} Nf6 {[%emt 0:00:09]} 2. c4 {[%emt 0:00:05]} e6 {[%emt 0:00:05][%cal Be7e6,Be6d5][%mdl 32]} 3. Nf3 {[%emt 0:00:05]} d5 {[%emt 0:00:15]} 4. Nc3 {[%emt 0:00:06]} c5 {[%emt 0:00:25]} 5. cxd5 {[%emt 0:00:21]} cxd4 {[%emt 0:00:10]} 6. Qxd4 {[%emt 0:06:05]} exd5 {[%emt 0:00:18]} 7. e4 {[%emt 0:00:12]} Nc6 {[%emt 0:01:23]} 8. Bb5 {[%emt 0:00:14]} dxe4 {[%emt 0:00:33]} 9. Qxd8+ {[%emt 0:00:31]} Kxd8 {[%emt 0:00:06]} 10. Ng5 {[%emt 0:01:47][%csl LRe4,LRf7]} Ke8 {[%emt 0:00:50]} 11. Ngxe4 {[%emt 0:01:50]} Nxe4 {[%emt 0:01:24]} 12. Nxe4 {[%emt 0:00:02]} Bb4+ {[%emt 0:01:56]} 13. Bd2 {[%emt 0:00:35]} Bxd2+ {[%emt 0:00:59]} 14. Nxd2 {[%emt 0:00:01]} Kd8 {[%emt 0:09:27]} 15. Bxc6 {[%emt 0:09:58]} bxc6 {[%emt 0:00:06]} 16. Ne4 {[%emt 0:00:07]} Kc7 {[%emt 0:03:43] ...Re8 would now be deadly.} 17. O-O-O {[%emt 0:02:06]} Be6 {[%emt 0:05:11]} 18. b3 {[%emt 0:00:05]} Bd5 {[%emt 0:05:48]} 19. Nc3 {[%emt 0:07:50]} Be6 {[%emt 0:05:34]} ({But not} 19... Bxg2 20. Rhe1 $14) 20. Rhe1 {[%emt 0:02:33]} Rad8 {[%emt 0:01:56]} 21. f3 {[%emt 0:00:11]} h6 {[%emt 0:03:28]} 22. Re5 {[%emt 0:11:00]} Rxd1+ {[%emt 0:05:05]} 23. Kxd1 $11 {[%emt 0:18:43][%mdl 4096] Endgame KRB-KRN} g5 {[%emt 0:04:04]} 24. Kc1 {[%emt 0:03:12]} Re8 {[%emt 0:04:31]} 25. Ne4 {[%emt 0:06:27]} Ra8 {[%emt 0:07:10]} 26. Kc2 {[%emt 0:04:41]} a5 {[%emt 0:02:02]} 27. a4 {[%emt 0:04:01]} Kd7 {[%emt 0:13:44]} 28. Kc3 {[%emt 0:07:10]} Rb8 {[%emt 0:06:32]} 29. Nd2 {[%emt 0:03:50]} Bd5 {[%emt 0:00:34]} 30. Nc4 {[%emt 0:00:04]} f6 $1 {[%emt 0:00:32]} 31. Re3 {[%emt 0:02:53]} Bxc4 {[%emt 0:00:26]} 32. Kxc4 {[%emt 0:00:01] KR-KR} Kd6 {[%emt 0:00:27]} 33. g3 {[%emt 0:00:22]} Rb4+ {[%emt 0:01:59]} 34. Kc3 {[%emt 0:00:04]} Rb8 {[%emt 0:00:20] Wards off Re8} 35. Kc4 {[%emt 0:00:16]} Rb4+ {[%emt 0:00:10]} 36. Kc3 {[%emt 0:00:04]} Rb8 {[%emt 0:00:07]} 37. Re4 {[%emt 0:01:05]} f5 {[%emt 0:03:54]} 38. Re3 {[%emt 0:00:25]} h5 {[%emt 0:02:29]} 39. Rd3+ {[%emt 0:02:59]} Ke5 {[%emt 0:12:08]} 1/2-1/2

[Event "85th ARM-ch HL 2025"]
[Site "Yerevan"]
[Date "2025.01.17"]
[Round "4.2"]
[White "Hayrapetyan, Hovik"]
[Black "Sargsyan, Sargis Vach."]
[Result "0-1"]
[Annotator "TA"]
[ECO "E51"]
[WhiteElo "2462"]
[BlackElo "2370"]
[PlyCount "113"]
[EventDate "2025.01.13"]
[EventType "tourn"]
[EventCountry "ARM"]
[SourceTitle "playchess.com"]
[Source "ChessBase"]
[SourceQuality "1"]
[TimeControl "40/5400+30:1800+30"]

{[%evp 13,113,-13,0,-6,-4,-10,0,-24,-12,-33,-24,-25,-19,-24,-25,-33,-36,-27,-31,-41,-17,-28,0,-40,0,0,0,0,0,-49,0,-51,17,0,-6,-25,-13,-69,-66,-102,-106,-111,-100,-115,12,0,0,0,0,0,0,0,0,-412,-404,-401,-378,-337,-185,-185,-89,-97,0,0,0,-5,0,-144,-25,-35,-37,-33,-33,-57,-57,-136,-88,-147,-141,-165,-165,-212,-202,-509,-495,-531,-551,-537,-520,-623,-615,-962,-867,-29984,-29985,-29983,-29983,-29986,-29987,-29990,-29991,-29993]} 1. d4 {[%emt 0:00:03]} Nf6 {[%emt 0:00:24]} 2. c4 {[%emt 0:00:07]} e6 {[%emt 0:00:06]} 3. Nf3 {[%emt 0:02:57]} d5 {[%emt 0:00:17]} 4. Nc3 {[%emt 0:00:07]} Bb4 {[%emt 0:02:39]} 5. e3 {[%emt 0:01:10]} O-O {[%emt 0:00:16]} 6. Bd2 {[%emt 0:00:26]} b6 {[%emt 0:01:42]} 7. cxd5 {[%emt 0:01:33]} exd5 {[%emt 0:00:05]} 8. Bd3 {[%emt 0:02:33]} Bd6 {[%emt 0:01:10]} 9. O-O {[%emt 0:05:57]} Re8 {[%emt 0:02:00]} 10. Rc1 {[%emt 0:26:43]} c5 {[%emt 0:01:03]} 11. Nb5 {[%emt 0:12:19]} Bf8 {[%emt 0:00:44]} 12. Ne5 {[%emt 0:00:10]} Ba6 {[%emt 0:00:46]} 13. a4 {[%emt 0:02:30]} Bb7 $1 {[%emt 0:00:08]} 14. f4 {[%emt 0:11:05]} Nc6 {[%emt 0:06:13]} 15. Bc3 {[%emt 0:07:49]} a6 {[%emt 0:02:01]} 16. Na3 {[%emt 0:01:58]} c4 {[%emt 0:22:34]} 17. Bb1 {[%emt 0:02:30]} Na7 {[%emt 0:14:20]} 18. Be1 {[%emt 0:01:31]} b5 {[%emt 0:05:47]} 19. Bh4 {[%emt 0:01:20]} Qb6 {[%emt 0:02:06]} 20. Bxf6 {[%emt 0:08:17]} Qxf6 {[%emt 0:00:04]} 21. Qf3 {[%emt 0:00:38]} (21. Rf3 $11 Bc8 22. Rg3) 21... Qe6 {[%emt 0:18:53]} (21... Rad8 $15) 22. g4 {[%emt 0:08:16]} (22. Rf2 $1 $11) 22... f6 {[%emt 0:03:04] [#]} (22... bxa4 23. Naxc4 f6 24. Qh3 $16) ({Black should try} 22... Bxa3 $15 23. bxa3 f6) 23. g5 $1 {[%emt 0:00:00][%cal Ob1h7]} f5 $1 {[%emt 0:06:22]} (23... fxe5 $6 24. Bxh7+ Kf7 (24... Kxh7 $2 25. Qh5+ Kg8 26. g6 $18) 25. f5 $16 (25. dxe5 Bxa3 26. bxa3 Rh8 $17) (25. fxe5+ Ke7 $16)) 24. g6 {[%emt 0:00:05]} hxg6 {[%emt 0:00:29]} (24... bxa4 $2 25. gxh7+ Kh8 26. Qh5 $18) 25. Qg2 {[%emt 0:01:41]} (25. Rc2 $11) 25... Nc6 $15 {[%emt 0:00:55]} (25... bxa4 $6 26. Rf3 c3 27. Rxc3 $14) 26. Rf3 {[%emt 0:00:34]} Nxe5 {[%emt 0:00:32]} (26... bxa4 27. Nxg6 Ne7 28. Ne5 $14) 27. fxe5 {[%emt 0:00:01]} Be7 {[%emt 0:00:12]} (27... bxa4 $6 28. Rg3 Kh7 29. Qh3+ (29. Nxc4 Rac8 $15) 29... Kg8 30. Qg2 $11) 28. axb5 {[%emt 0:01:06]} Bxa3 {[%emt 0:01:03]} (28... Rf8 $17 29. Rcf1 Bxa3) 29. bxa3 {[%emt 0:00:02]} (29. Rg3 {seems wilder.} Bxb2 30. Rf1 Qf7 31. Rxg6 Bc8 32. Rf6) 29... axb5 {[%emt 0:00:07]} 30. Rg3 {[%emt 0:00:01]} Ra6 $1 {[%emt 0:00:55][%cal Oe8f8]} (30... Rxa3 31. Rxg6 Qf7 32. Rf6 $16) 31. h4 {[%emt 0:00:25][%cal Oh4h5]} Qf7 {[%emt 0:01:56][%cal Oe8d8]} (31... Rxa3 32. Rxg6 Qf7 33. Kh2 $14) 32. Rf1 {[%emt 0:02:00][%cal Oh4h5]} Bc8 $1 {[%emt 0:00:03][%cal Oe8d8]} (32... Rxa3 $2 33. h5 Ra1 34. hxg6 $18 (34. Rxg6 Re6 $18)) 33. e4 $2 {[%emt 0:00:29][%mdl 8192]} dxe4 $19 {[%emt 0:00:35]} (33... Qa7 34. Rxg6 Rxg6 (34... Rxe5 $2 35. Kh2 $19) (34... Rxa3 35. exf5 Qxd4+ 36. Rf2 $11) (34... Qxd4+ $2 35. Kh1 $19) (34... dxe4 $2 35. Kh2 $19) 35. Qxg6 Qxd4+ 36. Kg2 Qxe5 (36... Rxe5 $2 37. Qc6 $19) 37. exf5 Qb2+ 38. Rf2 $19) 34. Bxe4 {[%emt 0:00:29]} Qa7 {[%emt 0:00:22]} 35. Bd5+ {[%emt 0:00:31]} Be6 {[%emt 0:00:22]} (35... Kh7 $142 36. Rd1 Rxe5 (36... Rxa3 37. Rxg6 Ra1 38. Rxg7+ Qxg7 39. Qxg7+ Kxg7 40. Rxa1 $15)) 36. Bxe6+ {[%emt 0:00:33]} Rexe6 {[%emt 0:00:30]} (36... Raxe6 $19 {is more deadly.} 37. Qd5 Kh8) 37. Qd5 $17 {[%emt 0:00:21][%csl LRb5,LRg6] [#]} Kh7 {[%emt 0:00:03]} (37... Qf7 $1 $17 38. Rf4 Rac6) 38. h5 $1 $11 {[%emt 0:00:23]} Qe7 {[%emt 0:04:27]} 39. Qf3 {[%emt 0:00:15] Strongly threatening hxg6+.} Qh4 $36 {[%emt 0:00:29][%csl LRd4,LRh5][%mdl 2048] Black has good play.} 40. Qf2 {[%emt 0:00:00]} (40. Kg2 $11 {keeps the balance.}) 40... f4 {[%emt 0:00:00] The board is on fire. Black is more active.} (40... Qxh5 41. Kg2 Kg8 42. Rh1 $16) (40... b4 $17 41. axb4 Ra2 (41... gxh5 $2 42. Rxg7+ Kxg7 43. Qxh4 $18) (41... Qxh5 $2 42. Kg2 $18) 42. Qxa2 Qxg3+ 43. Qg2 Qc3) 41. Qxf4 {[%emt 0:01:57]} Qxf4 {[%emt 0:04:00]} (41... Qxh5 42. Rf2 $18) 42. Rxf4 {[%emt 0:00:03]} gxh5 {[%emt 0:00:03][%mdl 4096] Endgame KRR-KRR. Black is a pawn up.} 43. Re3 {[%emt 0:01:05]} Re8 {[%emt 0:02:01] Inhibits Rf8.} 44. Kf2 {[%emt 0:07:42]} (44. d5 $15) 44... Rc8 {[%emt 0:01:41]} (44... g5 $142 45. Rfe4 Rc6) 45. Rc3 {[%emt 0:03:53]} ({Better is} 45. Rh4) 45... g5 $17 {[%emt 0:00:05]} 46. Rf7+ {[%emt 0:01:28]} Kg6 {[%emt 0:00:12]} 47. Rb7 {[%emt 0:02:22]} (47. Rd7 {was necessary.}) 47... Rf8+ $19 {[%emt 0:01:12]} 48. Ke3 $2 {[%emt 0:07:45]} (48. Ke2 {is more resistant.}) 48... g4 {[%emt 0:00:29]} 49. Ke4 {[%emt 0:00:52]} h4 {[%emt 0:00:46]} 50. Rxb5 {[%emt 0:02:08]} g3 {[%emt 0:01:52] aiming for ...g2.} 51. Rb2 {[%emt 0:04:44]} Kg5 {[%emt 0:00:18]} 52. Rxc4 {[%emt 0:02:27]} h3 {[%emt 0:01:21]} 53. Rc3 {[%emt 0:01:07]} Rf4+ {[%emt 0:00:23]} 54. Kd5 {[%emt 0:00:05]} g2 {[%emt 0:00:29]} 55. Rg3+ {[%emt 0:00:55]} Rg4 {[%emt 0:00:04]} 56. Rbb3 {[%emt 0:00:27]} h2 {[%emt 0:00:25]} 57. e6 {[%emt 0:01:05]} 0-1